fUST/lending_fUST_20250904
["ID","MTS","AMOUNT","RATE_DAILY","PERIOD"]
[383388822,1756920659578,-480.0,0.0001589,2]
[383388823,1756920659588,-480.0,0.0001589,2]
[383388824,1756920659597,-480.0,0.0001589,2]
[383388825,1756920659607,-480.0,0.0001589,2]
[383388826,1756920659617,-480.0,0.0001589,2]
[383388827,1756920659626,-500.3,0.0001589,2]
[383388828,1756920659636,-562.92,0.0001589,2]
[383388829,1756920659646,-480.0,0.0001589,2]
[383388830,1756920659655,-480.0,0.0001589,2]
[383388831,1756920659665,-480.0,0.0001589,2]
[383388832,1756920659674,-480.0,0.0001589,2]
[383388833,1756920659684,-480.0,0.0001589,2]
[383388834,1756920659695,-480.0,0.0001589,2]
[383388835,1756920659704,-505.94,0.0001589,2]
[383388836,1756920659714,-480.0,0.0001589,2]
[383388837,1756920659723,-480.0,0.0001589,2]
[383388838,1756920659733,-480.0,0.0001589,2]
[383388839,1756920659744,-480.0,0.0001589,2]
[383388840,1756920659754,-480.0,0.0001589,2]
[383388841,1756920659763,-269.16,0.0001589,2]
[383388842,1756920659913,-480.0,0.0001589,2]
[383388843,1756920659995,-480.0,0.0001589,2]
[383388844,1756920660009,-480.0,0.0001589,2]
[383388845,1756920660020,-552.34,0.0001589,2]
[383388846,1756920660030,-480.0,0.0001589,2]
[383388847,1756920660040,-480.0,0.0001589,2]
[383388848,1756920660050,-518.54,0.0001589,2]
[383388849,1756920660060,-480.0,0.0001589,2]
[383388850,1756920660070,-480.0,0.0001589,2]
[383388851,1756920660080,-480.0,0.0001589,2]
[383388852,1756920660090,-480.0,0.0001589,2]
[383388853,1756920660100,-480.0,0.0001589,2]
[383388854,1756920660110,-480.0,0.0001589,2]
[383388855,1756920660122,-480.0,0.0001589,2]
[383388856,1756920660132,-480.0,0.0001589,2]
[383388857,1756920660142,-846.23,0.0001589,2]
[383388858,1756920660152,-480.0,0.0001589,2]
[383388859,1756920660161,-480.0,0.0001589,2]
[383388860,1756920660171,-480.0,0.0001589,2]
[383388861,1756920660180,-1089.98,0.0001589,2]
[383388862,1756920660191,-480.0,0.0001589,2]
[383388863,1756920660201,-480.0,0.0001589,2]
[383388864,1756920660211,-480.0,0.0001589,2]
[383388865,1756920660220,-480.0,0.0001589,2]
[383388866,1756920660231,-480.0,0.0001589,2]
[383388867,1756920660240,-480.0,0.0001589,2]
[383388868,1756920660250,-480.0,0.0001589,2]
[383388869,1756920660261,-480.0,0.0001589,2]
[383388870,1756920660270,-1662.39,0.0001589,2]
[383388871,1756920660279,-480.0,0.0001589,2]
[383388872,1756920660289,-480.0,0.0001589,2]
[383388873,1756920660298,-480.0,0.0001589,2]
[383388874,1756920660307,-480.0,0.0001589,2]
[383388875,1756920660317,-480.0,0.0001589,2]
[383388876,1756920660326,-741.67,0.0001589,2]
[383388877,1756920660336,-574.23,0.0001589,2]
[383388878,1756920660345,-480.0,0.0001589,2]
[383388879,1756920660355,-480.0,0.0001589,2]
[383388880,1756920660365,-480.0,0.0001589,2]
[383388881,1756920660374,-480.0,0.0001589,2]
[383388882,1756920660384,-480.0,0.0001589,2]
[383388883,1756920660393,-480.0,0.0001589,2]
[383388884,1756920660403,-260.0,0.00016025,2]
[383388885,1756920660412,-209.40437684,0.00016101,2]
[383388886,1756920660422,-151.0,0.00016101,2]
[383388887,1756920660431,-151.0,0.00016101,2]
[383388888,1756920660441,-151.0,0.00016101,2]
[383388889,1756920660451,-151.0,0.00016101,2]
[383388890,1756920660461,-2264.10087164,0.00016101,2]
[383388891,1756920660470,-151.0,0.00016101,2]
[383388892,1756920660480,-151.0,0.00016101,2]
[383388893,1756920660489,-151.0,0.00016101,2]
[383388894,1756920660499,-151.0,0.00016101,2]
[383388895,1756920660508,-151.0,0.00016101,2]
[383388896,1756920660518,-151.0,0.00016101,2]
[383388897,1756920660527,-151.0,0.00016101,2]
[383388898,1756920660537,-151.0,0.00016101,2]
[383388899,1756920660547,-151.0,0.00016101,2]
[383388900,1756920660556,-237.63368288,0.00016101,2]
[383388901,1756920660566,-376.56386282,0.00016155,2]
[383388902,1756920660576,-2349.82590839,0.00016156,2]
[383388903,1756920660585,-509.0,0.00016164,2]
[383388904,1756920660594,-480.0,0.00016164,2]
[383388905,1756920660604,-496.72,0.00016164,2]
[383388906,1756920660614,-480.0,0.00016164,2]
[383388907,1756920660623,-480.0,0.00016164,2]
[383388908,1756920660632,-480.0,0.00016164,2]
[383388909,1756920660642,-480.0,0.00016164,2]
[383388910,1756920660651,-480.0,0.00016164,2]
[383388911,1756920660661,-480.0,0.00016164,2]
[383388912,1756920660671,-480.0,0.00016164,2]
[383388913,1756920660680,-480.0,0.00016164,2]
[383388914,1756920660691,-480.0,0.00016164,2]
[383388915,1756920660700,-480.0,0.00016164,2]
[383388916,1756920660709,-480.0,0.00016164,2]
[383388917,1756920660719,-480.0,0.00016164,2]
[383388918,1756920660728,-480.0,0.00016164,2]
[383388919,1756920660738,-480.0,0.00016164,2]
[383388920,1756920660747,-480.0,0.00016164,2]
[383388921,1756920660757,-480.0,0.00016164,2]
[383388922,1756920660767,-480.0,0.00016164,2]
[383388923,1756920660776,-480.0,0.00016164,2]
[383388924,1756920660785,-480.0,0.00016164,2]
[383388925,1756920660794,-480.0,0.00016164,2]
[383388926,1756920660803,-480.0,0.00016164,2]
[383388927,1756920660813,-286.86,0.00016164,2]
[383388928,1756920660823,-480.0,0.00016164,2]
[383388929,1756920660832,-480.0,0.00016164,2]
[383388930,1756920660841,-480.0,0.00016164,2]
[383388931,1756920660851,-480.0,0.00016164,2]
[383388932,1756920660861,-480.0,0.00016164,2]
[383388933,1756920660870,-480.0,0.00016164,2]
[383388934,1756920660880,-562.92,0.00016164,2]
[383388935,1756920660889,-480.0,0.00016164,2]
[383388936,1756920660899,-480.0,0.00016164,2]
[383388937,1756920660908,-480.0,0.00016164,2]
[383388938,1756920660918,-480.0,0.00016164,2]
[383388939,1756920660928,-480.0,0.00016164,2]
[383388940,1756920660942,-237.72,0.00016164,2]
[383388941,1756920660952,-505.94,0.00016164,2]
[383388942,1756920660962,-480.0,0.00016164,2]
[383388943,1756920660971,-272.92,0.00016164,2]
[383388944,1756920660982,-480.0,0.00016164,2]
[383388945,1756920660991,-480.0,0.00016164,2]
[383388946,1756920661001,-364.8,0.00016164,2]
[383388947,1756920661012,-480.0,0.00016164,2]
[383388948,1756920661022,-552.34,0.00016164,2]
[383388949,1756920661031,-480.0,0.00016164,2]
[383388950,1756920661041,-518.54,0.00016164,2]
[383388951,1756920661050,-480.0,0.00016164,2]
[383388952,1756920661059,-480.0,0.00016164,2]
[383388953,1756920661069,-480.0,0.00016164,2]
[383388954,1756920661079,-480.0,0.00016164,2]
[383388955,1756920661090,-480.0,0.00016164,2]
[383388956,1756920661099,-480.0,0.00016164,2]
[383388957,1756920661109,-480.0,0.00016164,2]
[383388958,1756920661118,-846.23,0.00016164,2]
[383388959,1756920661127,-626.37993722,0.00016164,2]
[383388960,1756920661137,-480.0,0.00016164,2]
[383388961,1756920661147,-480.0,0.00016164,2]
[383388962,1756920661157,-1089.98,0.00016164,2]
[383388963,1756920661167,-480.0,0.00016164,2]
[383388964,1756920661176,-480.0,0.00016164,2]
[383388965,1756920661186,-480.0,0.00016164,2]
[383388966,1756920661196,-480.0,0.00016164,2]
[383388967,1756920661205,-480.0,0.00016164,2]
[383388968,1756920661215,-480.0,0.00016164,2]
[383388969,1756920661226,-1662.39,0.00016164,2]
[383388970,1756920661236,-480.0,0.00016164,2]
[383388971,1756920661245,-208.67,0.00016164,2]
[383388972,1756920661255,-480.0,0.00016164,2]
[383388973,1756920661265,-480.0,0.00016164,2]
[383388974,1756920661275,-480.0,0.00016164,2]
[383388975,1756920661285,-741.67,0.00016164,2]
[383388976,1756920661294,-225.36,0.00016164,2]
[383388977,1756920661304,-480.0,0.00016164,2]
[383388978,1756920661313,-480.0,0.00016164,2]
[383388979,1756920661323,-480.0,0.00016164,2]
[383388980,1756920661332,-480.0,0.00016164,2]
[383388981,1756920661342,-480.0,0.00016164,2]
[383388982,1756920661352,-173.08377902,0.00016186,2]
[383388983,1756920661361,-500.0,0.00016272,2]
[383388984,1756920661371,-2297.12191461,0.00016438,2]
[383388985,1756920661380,-192.50148257,0.00016438,2]
[383388986,1756920661389,-480.0,0.00016438,2]
[383388987,1756920661399,-343.14,0.00016438,2]
[383388988,1756920661409,-480.0,0.00016438,2]
[383388989,1756920661419,-480.0,0.00016438,2]
[383388990,1756920661428,-480.0,0.00016438,2]
[383388991,1756920661438,-480.0,0.00016438,2]
[383388992,1756920661449,-516.59,0.00016438,2]
[383388993,1756920661459,-480.0,0.00016438,2]
[383388994,1756920661469,-480.0,0.00016438,2]
[383388995,1756920661478,-480.0,0.00016438,2]
[383388996,1756920661488,-480.0,0.00016438,2]
[383388997,1756920661497,-480.0,0.00016438,2]
[383388998,1756920661507,-480.0,0.00016438,2]
[383388999,1756920661516,-480.0,0.00016438,2]
[383389000,1756920661526,-413.28,0.00016438,2]
[383389001,1756920661536,-480.0,0.00016438,2]
[383389002,1756920661545,-480.0,0.00016438,2]
[383389003,1756920661555,-480.0,0.00016438,2]
[383389004,1756920661564,-480.0,0.00016438,2]
[383389005,1756920661573,-272.26,0.00016438,2]
[383389006,1756920661583,-480.0,0.00016438,2]
[383389007,1756920661592,-562.92,0.00016438,2]
[383389008,1756920661601,-480.0,0.00016438,2]
[383389009,1756920661611,-480.0,0.00016438,2]
[383389010,1756920661620,-480.0,0.00016438,2]
[383389011,1756920661630,-480.0,0.00016438,2]
[383389012,1756920661639,-505.94,0.00016438,2]
[383389013,1756920661649,-480.0,0.00016438,2]
[383389014,1756920661658,-480.0,0.00016438,2]
[383389015,1756920661668,-480.0,0.00016438,2]
[383389016,1756920661677,-494.88,0.00016438,2]
[383389017,1756920661687,-552.34,0.00016438,2]
[383389018,1756920661698,-432.4855129,0.00016438,2]
[383389019,1756920661707,-518.54,0.00016438,2]
[383389020,1756920661717,-179.48,0.00016438,2]
[383389021,1756920661726,-480.0,0.00016438,2]
[383389022,1756920661735,-602.42,0.00016438,2]
[383389023,1756920661745,-480.0,0.00016438,2]
[383389024,1756920661755,-480.0,0.00016438,2]
[383389025,1756920661765,-480.0,0.00016438,2]
[383389026,1756920661774,-480.0,0.00016438,2]
[383389027,1756920661784,-846.23,0.00016438,2]
[383389028,1756920661794,-480.0,0.00016438,2]
[383389029,1756920661804,-1089.98,0.00016438,2]
[383389030,1756920661813,-480.0,0.00016438,2]
[383389031,1756920661823,-435.11,0.00016438,2]
[383389032,1756920661832,-480.0,0.00016438,2]
[383389033,1756920661842,-1662.39,0.00016438,2]
[383389034,1756920661853,-557.94,0.00016438,2]
[383389035,1756920661865,-480.0,0.00016438,2]
[383389036,1756920661876,-480.0,0.00016438,2]
[383389037,1756920661891,-480.0,0.00016438,2]
[383389038,1756920661901,-741.67,0.00016438,2]
[383389039,1756920661910,-313.26877222,0.00016438,2]
[383389040,1756920661920,-480.0,0.00016438,2]
[383389041,1756920661930,-480.0,0.00016438,2]
[383389042,1756920661945,-480.0,0.00016438,2]
[383389043,1756920661954,-250.0,0.00016454,2]
[383389044,1756920661964,-360.0,0.00016573,2]
[383389045,1756920661974,-720.0,0.00016598,2]
[383389046,1756920661985,-389.0,0.00016602,2]
[383389047,1756920661995,-1506.25545127,0.00016639,2]
[383389048,1756920662005,-480.0,0.00016712,2]
[383389049,1756920662015,-480.0,0.00016712,2]
[383389050,1756920662025,-480.0,0.00016712,2]
[383389051,1756920662035,-480.0,0.00016712,2]
[383389052,1756920662045,-480.0,0.00016712,2]
[383389053,1756920662055,-480.0,0.00016712,2]
[383389054,1756920662064,-480.0,0.00016712,2]
[383389055,1756920662075,-609.53,0.00016712,2]
[383389056,1756920662084,-342.14,0.00016712,2]
[383389057,1756920662094,-480.0,0.00016712,2]
[383389058,1756920662105,-480.0,0.00016712,2]
[383389059,1756920662115,-480.0,0.00016712,2]
[383389060,1756920662130,-480.0,0.00016712,2]
[383389061,1756920662140,-467.34,0.00016712,2]
[383389062,1756920662149,-480.0,0.00016712,2]
[383389063,1756920662159,-480.0,0.00016712,2]
[383389064,1756920662169,-480.0,0.00016712,2]
[383389065,1756920662179,-562.92,0.00016712,2]
[383389066,1756920662189,-480.0,0.00016712,2]
[383389067,1756920662200,-480.0,0.00016712,2]
[383389068,1756920662210,-598.8,0.00016712,2]
[383389069,1756920662220,-480.0,0.00016712,2]
[383389070,1756920662230,-505.94,0.00016712,2]
[383389071,1756920662241,-488.17665519,0.00016712,2]
[383389072,1756920662251,-480.0,0.00016712,2]
[383389073,1756920662261,-188.12,0.00016712,2]
[383389074,1756920662271,-552.34,0.00016712,2]
[383389075,1756920662281,-518.54,0.00016712,2]
[383389076,1756920662290,-480.0,0.00016712,2]
[383389077,1756920662300,-480.0,0.00016712,2]
[383389078,1756920662310,-480.0,0.00016712,2]
[383389079,1756920662320,-480.0,0.00016712,2]
[383389080,1756920662330,-480.0,0.00016712,2]
[383389081,1756920662340,-846.23,0.00016712,2]
[383389082,1756920662349,-480.0,0.00016712,2]
[383389083,1756920662360,-1089.98,0.00016712,2]
[383389084,1756920662371,-480.0,0.00016712,2]
[383389085,1756920662381,-306.65,0.00016712,2]
[383389086,1756920662390,-1662.39,0.00016712,2]
[383389087,1756920662400,-480.0,0.00016712,2]
[383389088,1756920662410,-225.67,0.00016712,2]
[383389089,1756920662419,-480.0,0.00016712,2]
[383389090,1756920662430,-741.67,0.00016712,2]
[383389091,1756920662439,-480.0,0.00016712,2]
[383389092,1756920662449,-480.0,0.00016712,2]
[383389093,1756920662459,-480.0,0.00016712,2]
[383389094,1756920662469,-1000.0,0.0001678,2]
[383389095,1756920662479,-151.0,0.000169,2]
[383389096,1756920662488,-480.0,0.00016986,2]
[383389097,1756920662498,-480.0,0.00016986,2]
[383389098,1756920662507,-480.0,0.00016986,2]
[383389099,1756920662517,-580.03,0.00016986,2]
[383389100,1756920662527,-480.0,0.00016986,2]
[383389101,1756920662536,-567.08,0.00016986,2]
[383389102,1756920662546,-480.0,0.00016986,2]
[383389103,1756920662555,-564.46,0.00016986,2]
[383389104,1756920662565,-480.0,0.00016986,2]
[383389105,1756920662575,-480.0,0.00016986,2]
[383389106,1756920662584,-480.0,0.00016986,2]
[383389107,1756920662593,-480.0,0.00016986,2]
[383389108,1756920662603,-480.0,0.00016986,2]
[383389109,1756920662613,-480.0,0.00016986,2]
[383389110,1756920662622,-562.92,0.00016986,2]
[383389111,1756920662632,-480.0,0.00016986,2]
[383389112,1756920662642,-480.0,0.00016986,2]
[383389113,1756920662651,-388.32,0.00016986,2]
[383389114,1756920662661,-505.94,0.00016986,2]
[383389115,1756920662670,-257.65,0.00016986,2]
[383389116,1756920662680,-552.34,0.00016986,2]
[383389117,1756920662690,-518.54,0.00016986,2]
[383389118,1756920662700,-480.0,0.00016986,2]
[383389119,1756920662710,-480.0,0.00016986,2]
[383389120,1756920662720,-480.0,0.00016986,2]
[383389121,1756920662729,-480.0,0.00016986,2]
[383389122,1756920662739,-480.0,0.00016986,2]
[383389123,1756920662749,-846.23,0.00016986,2]
[383389124,1756920662758,-207.87,0.00016986,2]
[383389125,1756920662768,-1089.98,0.00016986,2]
[383389126,1756920662778,-480.0,0.00016986,2]
[383389127,1756920662787,-1662.39,0.00016986,2]
[383389128,1756920662797,-480.0,0.00016986,2]
[383389129,1756920662807,-480.0,0.00016986,2]
[383389130,1756920662817,-741.67,0.00016986,2]
[383389131,1756920662827,-151.0,0.00016986,2]
[383389132,1756920662836,-151.0,0.00016986,2]
[383389133,1756920662846,-151.0,0.00016986,2]
[383389134,1756920662855,-505.04,0.00016986,2]
[383389135,1756920662865,-480.0,0.00016986,2]
[383389136,1756920662874,-480.0,0.00016986,2]
[383389137,1756920662884,-460.0,0.00017121,2]
[383389138,1756920662893,-3389.07476536,0.00017122,2]
[383389139,1756920662902,-347.689376,0.00017153,2]
[383389140,1756920662912,-347.689376,0.00017153,2]
[383389141,1756920662921,-151.771339,0.00017153,2]
[383389142,1756920662932,-347.689376,0.00017153,2]
[383389143,1756920662944,-347.689376,0.00017153,2]
[383389144,1756920662954,-151.0,0.00017153,2]
[383389145,1756920662963,-151.0,0.00017153,2]
[383389146,1756920662973,-151.0,0.00017153,2]
[383389147,1756920662982,-151.0,0.00017153,2]
[383389148,1756920662992,-975.0,0.00017247,2]
[383389149,1756920663002,-633.0,0.00017247,2]
[383389150,1756920663014,-2153.0,0.00017247,2]
[383389151,1756920663023,-423.777,0.00017247,2]
[383389152,1756920663033,-540.04,0.0001726,2]
[383389153,1756920663043,-480.0,0.0001726,2]
[383389154,1756920663053,-480.0,0.0001726,2]
[383389155,1756920663063,-480.0,0.0001726,2]
[383389156,1756920663073,-480.0,0.0001726,2]
[383389157,1756920663083,-480.0,0.0001726,2]
[383389158,1756920663092,-480.0,0.0001726,2]
[383389159,1756920663102,-480.0,0.0001726,2]
[383389160,1756920663112,-480.0,0.0001726,2]
[383389161,1756920663122,-480.0,0.0001726,2]
[383389162,1756920663132,-480.0,0.0001726,2]
[383389163,1756920663142,-562.92,0.0001726,2]
[383389164,1756920663152,-480.0,0.0001726,2]
[383389165,1756920663162,-480.0,0.0001726,2]
[383389166,1756920663173,-505.94,0.0001726,2]
[383389167,1756920663183,-151.0,0.0001726,2]
[383389168,1756920663193,-151.0,0.0001726,2]
[383389169,1756920663204,-151.0,0.0001726,2]
[383389170,1756920663214,-151.0,0.0001726,2]
[383389171,1756920663225,-325.713276,0.0001726,2]
[383389172,1756920663236,-325.713276,0.0001726,2]
[383389173,1756920663246,-325.713276,0.0001726,2]
[383389174,1756920663257,-325.713276,0.0001726,2]
[383389175,1756920663384,-552.34,0.0001726,2]
[383389176,1756920663395,-518.54,0.0001726,2]
[383389177,1756920663406,-40.13265107,0.0001726,2]
[383389178,1756920663426,-439.86734893,0.0001726,2]
[383389179,1756920663436,-480.0,0.0001726,2]
[383389180,1756920663447,-547.47,0.0001726,2]
[383389181,1756920663457,-480.0,0.0001726,2]
[383389182,1756920663467,-480.0,0.0001726,2]
[383389183,1756920663478,-846.23,0.0001726,2]
[383389184,1756920663489,-1089.98,0.0001726,2]
[383389185,1756920663500,-480.0,0.0001726,2]
[383389186,1756920663509,-1662.39,0.0001726,2]
[383389187,1756920663520,-480.0,0.0001726,2]
[383389188,1756920663529,-480.0,0.0001726,2]
[383389189,1756920663539,-741.67,0.0001726,2]
[383389190,1756920663550,-480.0,0.0001726,2]
[383389191,1756920663560,-480.0,0.0001726,2]
[383389192,1756920663570,-585.88,0.00017534,2]
[383389193,1756920663580,-480.0,0.00017534,2]
[383389194,1756920663591,-151.0,0.00017534,2]
[383389195,1756920663600,-151.0,0.00017534,2]
[383389196,1756920663610,-290.10114974,0.00017534,2]
[383389197,1756920663620,-151.0,0.00017534,2]
[383389198,1756920663630,-480.0,0.00017534,2]
[383389199,1756920663640,-480.0,0.00017534,2]
[383389200,1756920663650,-270.51,0.00017534,2]
[383389201,1756920663660,-593.77,0.00017534,2]
[383389202,1756920663669,-480.0,0.00017534,2]
[383389203,1756920663679,-467.6563085,0.00017534,2]
[383389204,1756920663689,-480.0,0.00017534,2]
[383389205,1756920663700,-562.92,0.00017534,2]
[383389206,1756920663709,-247.88,0.00017534,2]
[383389207,1756920663718,-480.0,0.00017534,2]
[383389208,1756920663727,-505.94,0.00017534,2]
[383389209,1756920663736,-552.34,0.00017534,2]
[383389210,1756920663746,-518.54,0.00017534,2]
[383389211,1756920663756,-610.4,0.00017534,2]
[383389212,1756920663766,-480.0,0.00017534,2]
[383389213,1756920663776,-480.0,0.00017534,2]
[383389214,1756920663786,-526.64,0.00017534,2]
[383389215,1756920663796,-846.23,0.00017534,2]
[383389216,1756920663807,-1089.98,0.00017534,2]
[383389217,1756920663816,-480.0,0.00017534,2]
[383389218,1756920663826,-1662.39,0.00017534,2]
[383389219,1756920663837,-480.0,0.00017534,2]
[383389220,1756920663847,-480.0,0.00017534,2]
[383389221,1756920663857,-741.67,0.00017534,2]
[383389222,1756920663867,-480.0,0.00017534,2]
[383389223,1756920663878,-480.0,0.00017534,2]
[383389224,1756920663888,-154.98802286,0.00017556,2]
[383389225,1756920663898,-151.0,0.000176,2]
[383389226,1756920663908,-6018.99678328,0.00017606,2]
[383389227,1756920663918,-560.0,0.00017669,2]
[383389228,1756920663929,-500.17,0.00017733,2]
[383389229,1756920663943,-480.0,0.00017808,2]
[383389230,1756920663953,-480.0,0.00017808,2]
[383389231,1756920663963,-480.0,0.00017808,2]
[383389232,1756920663972,-480.0,0.00017808,2]
[383389233,1756920663982,-151.0,0.00017808,2]
[383389234,1756920663992,-151.0,0.00017808,2]
[383389235,1756920664002,-151.0,0.00017808,2]
[383389236,1756920664013,-151.0,0.00017808,2]
[383389237,1756920664022,-151.0,0.00017808,2]
[383389238,1756920664033,-53.20404382,0.00017808,2]
[383389239,1756920667331,-259.36986304,0.00013673,2]
[383389240,1756920697361,-300.0,0.00013193,2]
[383389241,1756920700192,-200.0,0.00013193,2]
[383389242,1756920701994,300.0,0.00013061,2]
[383389243,1756920725381,500.0,0.00013061,2]
[383389245,1756920918521,433.07,0.00012329,2]
[383389246,1756920928983,360.9,0.00012329,2]
[383389247,1756920940619,300.75,0.00012329,2]
[383389248,1756920951090,250.62,0.00012329,2]
[383389249,1756920961968,208.85,0.00012329,2]
[383389250,1756920972198,174.04,0.00012329,2]
[383389251,1756920982625,870.24,0.00012329,2]
[383389252,1756921266456,6901.54,0.00012692,2]
[383389253,1756921266485,3098.46,0.00012692,2]
[383389301,1756921832151,-281.08807694,0.00013287,2]
[383389302,1756921832162,-1200.0,0.00013671,2]
[383389304,1756921832173,-500.0,0.00013673,2]
[383389305,1756921832182,-500.0,0.00013673,2]
[383389306,1756921832193,-1200.0,0.00013695,2]
[383389307,1756921832204,-300.0,0.00013696,2]
[383389308,1756921832213,-300.0,0.00013696,2]
[383389309,1756921832224,-300.0,0.00013696,2]
[383389312,1756921832234,-300.0,0.00013696,2]
[383389313,1756921832244,-201.54254634,0.00013697,2]
[383389315,1756921832254,-500.0,0.00013697,2]
[383389317,1756921832263,-192.9692703,0.00013697,2]
[383389319,1756921832273,-500.0,0.00013697,2]
[383389321,1756921832282,-500.0,0.00013697,2]
[383389323,1756921832291,-500.0,0.00013697,2]
[383389325,1756921832301,-500.0,0.00013697,2]
[383389327,1756921832311,-500.0,0.00013697,2]
[383389329,1756921832321,-500.0,0.00013697,2]
[383389331,1756921832331,-500.0,0.00013697,2]
[383389332,1756921832340,-500.0,0.00013697,2]
[383389333,1756921832350,-500.0,0.00013697,2]
[383389335,1756921832360,-500.0,0.00013697,2]
[383389339,1756921832522,-500.0,0.00013697,2]
[383389340,1756921832542,-500.0,0.00013697,2]
[383389341,1756921832552,-500.0,0.00013697,2]
[383389342,1756921832562,-500.0,0.00013697,2]
[383389343,1756921832572,-500.0,0.00013697,2]
[383389344,1756921832581,-500.0,0.00013697,2]
[383389345,1756921832591,-500.0,0.00013697,2]
[383389346,1756921832601,-500.0,0.00013697,2]
[383389347,1756921832610,-500.0,0.00013697,2]
[383389348,1756921832620,-446.84690937,0.00013697,2]
[383389349,1756921832630,-500.0,0.00013697,2]
[383389350,1756921832640,-500.0,0.00013697,2]
[383389351,1756921832649,-500.0,0.00013697,2]
[383389352,1756921832658,-500.0,0.00013697,2]
[383389353,1756921832668,-500.0,0.00013697,2]
[383389354,1756921832677,-480.0,0.00013698,2]
[383389355,1756921832687,-480.0,0.00013698,2]
[383389356,1756921832697,-480.0,0.00013698,2]
[383389357,1756921832707,-52.72692136,0.00013698,2]
[383389358,1756921832719,-427.27307864,0.00013698,2]
[383389359,1756921832728,-480.0,0.00013698,2]
[383389360,1756921832738,-480.0,0.00013698,2]
[383389361,1756921832747,-210.11192519,0.00013698,2]
[383389362,1756921832758,-480.0,0.00013698,2]
[383389363,1756921832767,-480.0,0.00013698,2]
[383389364,1756921832776,-480.0,0.00013698,2]
[383389365,1756921832786,-480.0,0.00013698,2]
[383389366,1756921832798,-480.0,0.00013698,2]
[383389367,1756921832808,-480.0,0.00013698,2]
[383389368,1756921832818,-480.0,0.00013698,2]
[383389369,1756921832828,-533.1,0.00013698,2]
[383389370,1756921832838,-480.0,0.00013698,2]
[383389371,1756921832849,-480.0,0.00013698,2]
[383389372,1756921832859,-480.0,0.00013698,2]
[383389373,1756921832868,-480.0,0.00013698,2]
[383389374,1756921832878,-480.0,0.00013698,2]
[383389375,1756921832887,-480.0,0.00013698,2]
[383389376,1756921832897,-480.0,0.00013698,2]
[383389377,1756921832906,-480.0,0.00013698,2]
[383389378,1756921832916,-462.56421098,0.00013698,2]
[383389379,1756921832926,-480.0,0.00013698,2]
[383389380,1756921832937,-480.0,0.00013698,2]
[383389381,1756921832947,-480.0,0.00013698,2]
[383389382,1756921832957,-480.0,0.00013698,2]
[383389383,1756921832967,-480.0,0.00013698,2]
[383389384,1756921832976,-480.0,0.00013698,2]
[383389385,1756921832986,-480.0,0.00013698,2]